bitfinex-derivatives/quotes_BTCF0:USTF0_20250830
["timestamp","ask_amount","ask_price","bid_price","bid_amount"]
[1756552272673,0.06213467,108610.0,108600.0,2.10342117]
[1756552273779,0.10820727,108610.0,108600.0,2.10342117]
[1756552274279,0.10820727,108610.0,108600.0,2.34870261]
[1756552275267,0.06639727,108610.0,108600.0,2.34870261]
[1756552275470,0.06639727,108610.0,108600.0,1.50330261]
[1756552275666,0.06639727,108610.0,108600.0,2.34858261]
[1756552277980,0.06639727,108610.0,108600.0,2.33567261]
[1756552282882,0.08612811,108610.0,108600.0,2.33567261]
[1756552283681,0.08612811,108610.0,108600.0,1.96062829]
[1756552283883,0.08612811,108610.0,108600.0,2.69647261]
[1756552285081,0.08612811,108610.0,108600.0,1.85119261]
[1756552285280,0.15122811,108610.0,108600.0,2.20039117]
[1756552285980,0.15122811,108610.0,108600.0,1.35591117]
[1756552286283,0.15122811,108610.0,108600.0,2.20043117]
[1756552290681,0.08612811,108610.0,108600.0,2.20043117]
[1756552290882,0.13574878,108610.0,108600.0,2.20043117]
[1756552291082,0.13574878,108610.0,108600.0,1.83963117]
[1756552293390,0.08612811,108610.0,108600.0,1.83963117]
[1756552297684,0.08612811,108610.0,108600.0,1.47883117]
[1756552297886,0.08612811,108610.0,108600.0,1.83963117]
[1756552300892,0.08612811,108610.0,108600.0,1.47883117]
[1756552301092,0.08612811,108610.0,108600.0,1.83963117]
[1756552303792,0.08612811,108610.0,108600.0,1.59434973]
[1756552303996,0.08612811,108610.0,108600.0,1.83963117]
[1756552305497,0.08612811,108610.0,108600.0,1.34906829]
[1756552305797,0.08612811,108610.0,108600.0,1.83963117]
[1756552306892,0.08612811,108610.0,108600.0,1.47883117]
[1756552307191,0.08612811,108610.0,108600.0,1.83963117]
[1756552315710,0.08612811,108610.0,108600.0,0.99511117]
[1756552315914,0.08612811,108610.0,108600.0,1.83683117]
[1756552319016,0.08612811,108610.0,108600.0,2.19763117]
[1756552319206,0.08612811,108610.0,108600.0,2.15181288]
[1756552320419,0.08612811,108610.0,108600.0,1.31009288]
[1756552320617,0.08612811,108610.0,108600.0,2.15125288]
[1756552323421,0.08612811,108610.0,108600.0,2.15141288]
[1756552325821,0.12667811,108610.0,108600.0,0.86534829]
[1756552326008,0.73468022,108610.0,108600.0,1.23006973]
[1756552326213,0.73468022,108610.0,108600.0,0.38902973]
[1756552326511,0.73468022,108610.0,108600.0,1.23026973]
[1756552326712,0.73468022,108610.0,108600.0,1.47555117]
[1756552327018,0.68505955,108610.0,108600.0,1.47555117]
[1756552328017,0.4971072,108610.0,108600.0,0.98498829]
[1756552328230,0.5376572,108610.0,108600.0,0.98498829]
[1756552328421,0.55853831,108610.0,108600.0,1.47555117]
[1756552328812,0.62466321,108610.0,108600.0,1.47555117]
[1756552329428,0.55853831,108610.0,108600.0,1.47555117]
[1756552329618,0.55853831,108610.0,108600.0,1.23026973]
[1756552331824,0.55853831,108610.0,108600.0,1.47555117]
[1756552332425,0.604786,108610.0,108600.0,1.47555117]
[1756552332624,0.604786,108610.0,108600.0,1.23026973]
[1756552333326,0.604786,108610.0,108600.0,1.23126973]
[1756552334929,0.604786,108610.0,108600.0,1.47655117]
[1756552337023,0.65434264,108610.0,108600.0,1.47655117]
[1756552338429,0.65434264,108610.0,108600.0,1.23126973]
[1756552338748,0.65434264,108610.0,108600.0,1.47655117]
[1756552344834,0.65434264,108610.0,108600.0,0.98598829]
[1756552345035,0.65434264,108610.0,108600.0,1.23126973]
[1756552345334,0.65434264,108610.0,108600.0,1.47655117]
[1756552345954,0.65434264,108610.0,108600.0,1.23126973]
[1756552350833,0.65434264,108610.0,108600.0,1.23376973]
[1756552355344,0.604786,108610.0,108600.0,1.23376973]
[1756552357036,0.35950456,108610.0,108600.0,1.23376973]
[1756552357242,0.965586,108610.0,108600.0,1.23376973]
[1756552357439,0.965586,108610.0,108600.0,1.23304973]
[1756552363142,0.9858425,108610.0,108600.0,1.23304973]
[1756552366750,0.9858425,108610.0,108600.0,1.25451973]
[1756552367154,1.0519674,108610.0,108600.0,1.25451973]
[1756552367648,0.9858425,108610.0,108600.0,1.25451973]
[1756552368352,0.74056106,108610.0,108600.0,1.25451973]
[1756552368549,0.9858425,108610.0,108600.0,1.25451973]
[1756552374359,0.74056106,108610.0,108600.0,1.25451973]
[1756552374760,0.9858425,108610.0,108600.0,1.25451973]
[1756552377059,1.0519674,108610.0,108600.0,1.25451973]
[1756552378859,0.6911674,108610.0,108600.0,1.25451973]
[1756552379155,0.50244164,108610.0,108600.0,1.56950144]
[1756552379370,0.50244164,108610.0,108600.0,1.45398288]
[1756552384763,0.50244464,108610.0,108600.0,1.45398288]
[1756552386271,0.48218514,108610.0,108600.0,1.45398288]
[1756552386467,0.50244437,108610.0,108600.0,1.45398288]
[1756552387167,0.43631947,108610.0,108600.0,1.45398288]
[1756552394576,0.08738803,108610.0,108600.0,1.92187541]
[1756552394776,0.13701105,108610.0,108600.0,1.92187541]
[1756552396070,0.13701105,108610.0,108600.0,1.92387541]
[1756552403986,0.13701105,108610.0,108600.0,1.92303541]
[1756552404190,0.30616344,108620.0,108600.0,1.92303541]
[1756552404380,0.3665366,108620.0,108610.0,0.34648144]
[1756552404581,0.3665366,108620.0,108610.0,0.45357397]
[1756552404809,0.7273366,108620.0,108610.0,0.20829253]
[1756552404981,1.25819852,108620.0,108610.0,0.21079253]
[1756552405182,1.25819852,108620.0,108610.0,0.18779269]
[1756552405584,1.25819852,108620.0,108610.0,0.43307413]
[1756552406288,1.25819852,108620.0,108610.0,0.45451413]
[1756552406587,1.25819852,108620.0,108610.0,0.45551413]
[1756552406988,1.25819852,108620.0,108610.0,0.45451413]
[1756552408394,1.25819852,108620.0,108610.0,0.20923269]
[1756552408599,1.25819852,108620.0,108610.0,0.45451413]
[1756552408788,1.25819852,108620.0,108610.0,0.20923269]
[1756552410995,1.25819852,108620.0,108610.0,0.14203269]
[1756552411198,1.25819852,108620.0,108610.0,0.18135269]
[1756552411389,1.25819852,108620.0,108610.0,0.11947269]
[1756552412594,1.25819852,108620.0,108610.0,0.17913269]
[1756552412794,1.25819852,108620.0,108610.0,0.11947269]
[1756552413798,0.89739852,108620.0,108610.0,0.11947269]
[1756552414097,1.25819852,108620.0,108610.0,0.11947269]
[1756552414396,1.25819852,108620.0,108610.0,0.0879158]
[1756552415296,1.25819852,108620.0,108610.0,0.1475758]
[1756552416198,1.27811775,108620.0,108610.0,0.1475758]
[1756552416995,1.34421997,108620.0,108610.0,0.1475758]
[1756552417196,1.34421997,108620.0,108610.0,0.39285724]
[1756552417793,1.34421997,108620.0,108610.0,0.1475758]
[1756552417994,1.27811775,108620.0,108610.0,0.1475758]
[1756552418298,1.29081775,108620.0,108610.0,0.04183]
[1756552418697,1.35691997,108620.0,108610.0,0.04183]
[1756552421201,2.12961775,108620.0,108610.0,0.04183]
[1756552423502,2.12961775,108620.0,108610.0,0.28711144]
[1756552427906,2.19571997,108620.0,108610.0,0.28711144]
[1756552428408,2.07562226,108620.0,108610.0,0.28711144]
[1756552429408,2.12165485,108620.0,108610.0,0.28711144]
[1756552436321,1.63109197,108620.0,108610.0,0.28711144]
[1756552436520,2.12165485,108620.0,108610.0,0.28711144]
[1756552436914,2.12165485,108620.0,108610.0,0.34677144]
[1756552438317,1.28285485,108620.0,108610.0,0.34677144]
[1756552438526,1.76021485,108620.0,108610.0,0.34677144]
[1756552438715,2.12101485,108620.0,108610.0,0.34677144]
[1756552439217,0.61914622,108620.0,108610.0,0.34677144]
[1756552439416,1.70258766,108620.0,108610.0,0.34677144]
[1756552439626,0.86442766,108620.0,108610.0,0.34677144]
[1756552439921,1.70258766,108620.0,108610.0,0.34677144]
[1756552440319,1.9478691,108620.0,108610.0,0.34677144]
[1756552440820,1.70258766,108620.0,108610.0,0.34677144]
[1756552441215,1.34178766,108620.0,108610.0,0.34677144]
[1756552441618,1.34178766,108620.0,108610.0,0.34777144]
[1756552441918,1.70258766,108620.0,108610.0,0.34777144]
[1756552442417,1.9478691,108620.0,108610.0,0.34777144]
[1756552443922,1.5870691,108620.0,108610.0,0.34777144]
[1756552444125,1.9478691,108620.0,108610.0,0.34777144]
[1756552447027,1.88176688,108620.0,108610.0,0.34777144]
[1756552448426,1.88172688,108620.0,108610.0,0.34777144]
[1756552448826,1.94783538,108620.0,108610.0,0.34777144]
[1756552453434,0.86443394,108620.0,108610.0,0.42462569]
[1756552453635,0.2583525,108620.0,108610.0,0.42934425]
[1756552453837,0.2583525,108620.0,108610.0,0.67462569]
[1756552454534,0.50363394,108620.0,108610.0,0.67462569]
[1756552455429,0.50363394,108620.0,108610.0,1.51274569]
[1756552455629,0.50363394,108620.0,108610.0,0.42934425]
[1756552455838,0.50363394,108620.0,108610.0,1.26742425]
[1756552456029,0.50363394,108620.0,108610.0,1.51270569]
[1756552457531,0.43752544,108620.0,108610.0,1.51270569]
[1756552459543,0.43752544,108620.0,108610.0,0.67462569]
[1756552459733,0.43752544,108620.0,108610.0,1.51270569]
[1756552460239,0.79832544,108620.0,108610.0,1.51270569]
[1756552460540,0.79832544,108620.0,108610.0,0.67462569]
[1756552460736,0.79832544,108620.0,108610.0,1.51266569]
[1756552461543,0.553044,108620.0,108610.0,1.51266569]
[1756552461737,0.79832544,108620.0,108610.0,1.51266569]
[1756552462339,0.86443394,108620.0,108610.0,1.51266569]
[1756552464642,0.6191525,108620.0,108610.0,1.51266569]
[1756552464935,0.86443394,108620.0,108610.0,1.51266569]
[1756552468240,0.6191525,108620.0,108610.0,1.51266569]
[1756552468444,0.86443394,108620.0,108610.0,1.51266569]
[1756552470449,0.86443394,108620.0,108610.0,0.67462569]
[1756552470649,0.86443394,108620.0,108610.0,1.51262569]
[1756552474351,0.86443394,108620.0,108610.0,1.26734425]
[1756552474646,0.86443394,108620.0,108610.0,1.51262569]
[1756552475145,0.86443394,108620.0,108610.0,1.26734425]
[1756552475351,0.86443394,108620.0,108610.0,1.51262569]
[1756552476957,0.50363394,108620.0,108610.0,1.51262569]
[1756552477146,0.86443394,108620.0,108610.0,1.51262569]
[1756552479953,0.50363394,108620.0,108610.0,1.51262569]
[1756552480147,0.86443394,108620.0,108610.0,1.51262569]
[1756552480347,0.79832544,108620.0,108610.0,1.51262569]
[1756552481657,0.79832544,108620.0,108610.0,1.5312516]
[1756552484555,0.553044,108620.0,108610.0,1.5312516]
[1756552484860,0.79832544,108620.0,108610.0,1.5312516]
[1756552486161,0.43752544,108620.0,108610.0,1.5312516]
[1756552486659,0.79832544,108620.0,108610.0,1.5312516]
[1756552490364,0.86446242,108620.0,108610.0,1.5312516]
[1756552490565,0.68722276,108620.0,108610.0,1.5312516]
[1756552490766,0.7078813,108620.0,108610.0,1.5312516]
[1756552492169,0.7450413,108620.0,108610.0,0.6932516]
[1756552492369,0.7450413,108620.0,108610.0,1.5310916]
[1756552492570,0.7682713,108620.0,108610.0,1.5310916]
[1756552494172,0.4074713,108620.0,108610.0,1.5310916]
[1756552494470,0.7682713,108620.0,108610.0,1.5310916]
[1756552495173,0.52298986,108620.0,108610.0,1.5310916]
[1756552495372,0.7682713,108620.0,108610.0,1.5310916]
[1756552496374,0.4074713,108620.0,108610.0,1.5310916]
[1756552496570,0.7682713,108620.0,108610.0,1.5310916]
[1756552496872,0.7682713,108620.0,108610.0,1.28581016]
[1756552497070,0.70213432,108620.0,108610.0,1.5310916]
[1756552498272,0.42399044,108620.0,108610.0,1.5310916]
[1756552498473,0.78479044,108620.0,108610.0,1.5310916]
[1756552498868,0.42399044,108620.0,108610.0,1.5310916]
[1756552499174,0.42399044,108620.0,108610.0,1.20423735]
[1756552499473,0.78479044,108620.0,108610.0,1.20423735]
[1756552500375,0.78479044,108620.0,108610.0,0.36639735]
[1756552500572,0.42399044,108620.0,108610.0,1.20415735]
[1756552501073,0.78479044,108620.0,108610.0,1.20415735]
[1756552501573,0.78479044,108620.0,108610.0,0.12111591]
[1756552501877,1.03007188,108620.0,108610.0,0.32837808]
[1756552502375,0.78479044,108620.0,108610.0,1.16609808]
[1756552504074,0.80472291,108620.0,108610.0,1.16609808]
[1756552504467,1.05000435,108620.0,108610.0,0.15995089]
[1756552504669,1.30000435,108620.0,108610.0,0.16604811]
[1756552506674,1.30000435,108620.0,108610.0,0.13822016]
[1756552507079,1.36612656,108620.0,108610.0,0.20196016]
[1756552507277,1.28347044,108620.0,108610.0,0.20196016]
[1756552507477,1.28347044,108620.0,108610.0,0.20096016]
[1756552509281,1.21734823,108620.0,108610.0,0.20096016]
[1756552509579,1.28346329,108620.0,108610.0,0.20096016]
[1756552511680,1.28346329,108620.0,108610.0,0.4462416]
[1756552513884,0.79290041,108620.0,108610.0,0.4462416]
[1756552514085,1.28346329,108620.0,108610.0,0.4462416]
[1756552514488,1.28346329,108620.0,108610.0,0.20096016]
[1756552515582,1.28346329,108620.0,108610.0,0.4462416]
[1756552517587,2.12106329,108620.0,108610.0,0.4462416]
[1756552522389,2.12106329,108620.0,108610.0,0.20096016]
[1756552522586,2.12106329,108620.0,108610.0,0.4462416]
[1756552525087,2.12106329,108620.0,108610.0,0.13722016]
[1756552526015,1.28346329,108620.0,108610.0,0.13722016]
[1756552526195,2.12102329,108620.0,108610.0,0.13722016]
[1756552527797,2.12102329,108620.0,108610.0,0.3825016]
[1756552528898,1.87102329,108620.0,108610.0,0.13722016]
[1756552529088,0.10423,108610.0,108600.0,0.34132625]
[1756552529392,0.36944391,108610.0,108600.0,0.34132625]
[1756552529900,0.36944391,108610.0,108600.0,0.58660769]
[1756552530200,0.36944391,108610.0,108600.0,0.58760769]
[1756552542602,0.12416247,108610.0,108600.0,0.58760769]
[1756552542814,0.36944391,108610.0,108600.0,0.58760769]
[1756552543810,0.43555897,108610.0,108600.0,0.58760769]
[1756552544007,0.43555897,108610.0,108600.0,0.09704481]
[1756552544210,0.06321,108590.0,108580.0,0.45501625]
[1756552544399,0.17329654,108590.0,108580.0,1.80509913]
[1756552544804,0.17329654,108590.0,108580.0,2.05509913]
[1756552545509,0.17329654,108590.0,108580.0,2.05709913]
[1756552546106,0.17329654,108590.0,108580.0,2.05609913]
[1756552546307,0.17329654,108590.0,108580.0,2.06994913]
[1756552546508,0.17329654,108590.0,108580.0,2.07294913]
[1756552546708,0.41857798,108590.0,108580.0,2.07294913]
[1756552546910,0.17329654,108590.0,108580.0,2.06994913]
[1756552547112,0.12370247,108590.0,108580.0,2.07194913]
[1756552548011,0.12370247,108590.0,108580.0,1.71114913]
[1756552548212,0.12370247,108590.0,108580.0,2.07194913]
[1756552548411,0.36898391,108590.0,108580.0,1.46114913]
[1756552549315,0.12370247,108590.0,108580.0,1.46114913]
[1756552550413,0.36898391,108590.0,108580.0,1.46114913]
[1756552551618,0.36898391,108590.0,108580.0,0.97058625]
[1756552551912,0.36898391,108590.0,108580.0,1.46114913]
[1756552556017,0.12370247,108590.0,108580.0,1.46114913]
[1756552556715,0.36898391,108590.0,108580.0,0.97058625]
[1756552556916,0.36898391,108590.0,108580.0,1.46114913]
[1756552561715,0.77937798,108590.0,108580.0,0.03901]
[1756552561919,0.77937798,108590.0,108580.0,1.12157144]
[1756552562220,1.02937798,108590.0,108580.0,0.87629]
[1756552562824,1.02937798,108590.0,108580.0,1.12157144]
[1756552563322,1.02937798,108590.0,108580.0,0.28429144]
[1756552563534,1.02937798,108590.0,108580.0,0.87629]
[1756552564123,1.02937798,108590.0,108580.0,0.03901]
[1756552564324,1.02937798,108590.0,108560.0,2.31550798]
[1756552564325,0.03938,108570.0,108560.0,2.31550798]
[1756552564527,0.07983527,108570.0,108560.0,3.39806942]
[1756552565523,0.13828527,108570.0,108560.0,3.39806942]
[1756552565714,0.13828527,108570.0,108560.0,3.40306942]
[1756552567127,0.13828527,108570.0,108560.0,3.40606942]
[1756552567423,0.13828527,108570.0,108560.0,1.71529248]
[1756552568623,0.07983527,108570.0,108560.0,1.71529248]
[1756552574031,0.07983527,108570.0,108560.0,1.69664288]
[1756552576932,0.32511671,108570.0,108560.0,1.69664288]
[1756552581041,0.07983527,108570.0,108560.0,1.69664288]
[1756552581232,0.32511671,108570.0,108560.0,1.69664288]
[1756552581627,0.32511671,108570.0,108560.0,1.20608]
[1756552581832,0.32511671,108570.0,108560.0,1.69664288]
[1756552583452,0.38356671,108570.0,108560.0,1.20608]
[1756552583643,0.38356671,108570.0,108560.0,1.45124144]
[1756552584537,0.38356671,108570.0,108560.0,0.84516]
[1756552585332,0.38356671,108570.0,108560.0,1.09044144]
[1756552585743,0.38356671,108570.0,108560.0,0.84516]
[1756552585945,0.38356671,108570.0,108560.0,1.09044144]
[1756552586446,0.38356671,108570.0,108560.0,0.84516]
[1756552587145,0.38356671,108570.0,108560.0,1.09044144]
[1756552587146,0.43307357,108570.0,108560.0,1.09044144]
[1756552587446,0.43307357,108570.0,108560.0,0.84516]
[1756552587843,0.43307357,108570.0,108560.0,1.09044144]
[1756552588044,0.43307357,108570.0,108560.0,0.84516]
[1756552588245,0.43307357,108570.0,108560.0,1.09044144]
[1756552589047,0.43307357,108570.0,108560.0,0.84516]
[1756552591047,0.43307357,108570.0,108560.0,0.008]
[1756552591242,0.43307357,108570.0,108560.0,0.84516]
[1756552591447,0.43307357,108570.0,108560.0,1.09044144]
[1756552591750,0.43307357,108570.0,108560.0,0.84516]
[1756552591948,0.43307357,108570.0,108560.0,1.09044144]
[1756552593552,0.43307357,108570.0,108560.0,0.84516]
[1756552593749,0.43307357,108570.0,108560.0,1.09044144]
[1756552595754,0.18779213,108570.0,108560.0,1.09044144]
[1756552595969,0.43307357,108570.0,108560.0,1.09044144]
[1756552597649,0.25821772,108570.0,108560.0,1.09044144]
[1756552597848,0.27850735,108570.0,108560.0,1.10680144]
[1756552598653,0.31940735,108570.0,108560.0,0.06297]
[1756552598847,0.68020735,108570.0,108560.0,0.90005]
[1756552599756,0.74328735,108570.0,108560.0,1.14533144]
[1756552602763,0.74328735,108570.0,108560.0,0.90005]
[1756552603057,0.74328735,108570.0,108560.0,1.14533144]
[1756552607159,0.74328735,108570.0,108560.0,0.90005]
[1756552609163,0.74328735,108570.0,108560.0,0.06297]
[1756552609356,0.74328735,108570.0,108560.0,0.89997]
[1756552611057,0.98856879,108570.0,108560.0,0.89997]
[1756552611258,0.74328735,108570.0,108560.0,0.89997]
[1756552611459,0.98856879,108570.0,108560.0,0.89997]
[1756552611765,0.74328735,108570.0,108560.0,0.89997]
[1756552612366,0.10398,108560.0,108540.0,0.58509914]
[1756552612568,0.72514927,108560.0,108550.0,0.86875]
[1756552613776,0.97043071,108560.0,108550.0,0.86875]
[1756552614468,0.97043071,108560.0,108550.0,0.89319]
[1756552614971,0.61723071,108560.0,108550.0,0.89319]
[1756552615762,0.61923071,108560.0,108550.0,0.89319]
[1756552617778,0.6687861,108560.0,108550.0,0.89319]
[1756552621370,0.61923071,108560.0,108550.0,0.89319]
[1756552622068,0.6687861,108560.0,108550.0,0.89319]
[1756552623571,1.0295861,108560.0,108550.0,0.89319]
[1756552623974,0.6687861,108560.0,108550.0,0.89319]
[1756552626772,0.6687861,108560.0,108550.0,0.05619]
[1756552626977,1.0295861,108560.0,108550.0,0.05619]
[1756552627872,0.98003071,108560.0,108550.0,0.05619]
[1756552633783,0.98003071,108560.0,108540.0,0.66651606]
[1756552633784,1.47531215,108560.0,108540.0,0.66651606]
[1756552633982,0.35585997,108550.0,108540.0,1.50339606]
[1756552634285,0.3755478,108550.0,108540.0,1.27909692]
[1756552634986,0.62082924,108550.0,108540.0,1.27909692]
[1756552635485,0.62182924,108550.0,108540.0,1.27909692]
[1756552635985,0.3765478,108550.0,108540.0,1.27909692]
[1756552637182,0.36636345,108550.0,108540.0,1.27909692]
[1756552638683,0.40784345,108550.0,108540.0,0.48627692]
[1756552638981,0.40784345,108550.0,108540.0,1.32311692]
[1756552640089,0.40784345,108550.0,108540.0,0.48627692]
[1756552640090,0.45737198,108550.0,108540.0,0.48627692]
[1756552640475,0.45737198,108550.0,108540.0,1.32311692]
[1756552645784,0.45737198,108550.0,108540.0,0.96231692]
[1756552645985,0.45737198,108550.0,108540.0,1.32311692]
[1756552648185,0.15104054,108550.0,108540.0,1.8136798]
[1756552648389,0.06003201,108550.0,108540.0,2.0636798]
[1756552648689,0.30531345,108550.0,108540.0,2.0636798]
[1756552649086,0.06003201,108550.0,108540.0,2.0636798]
[1756552649281,0.30531345,108550.0,108540.0,2.0636798]
[1756552653194,0.30531345,108550.0,108540.0,1.81839836]
[1756552653487,0.30531345,108550.0,108540.0,2.0636798]
[1756552653895,0.30531345,108550.0,108540.0,1.81839836]
[1756552655491,0.35484198,108550.0,108540.0,1.81839836]
[1756552657202,0.06003201,108550.0,108540.0,2.1744798]
[1756552657595,0.30531345,108550.0,108540.0,2.1744798]
[1756552659210,0.06003201,108550.0,108540.0,2.1744798]
[1756552659409,0.30531345,108550.0,108540.0,2.1744798]
[1756552661507,0.06003201,108550.0,108540.0,2.1744798]
[1756552663412,0.06003201,108550.0,108540.0,2.4244798]
[1756552665219,0.02082454,108560.0,108550.0,0.00667]
[1756552665416,0.02082454,108560.0,108550.0,0.63145537]
[1756552666016,0.02082454,108560.0,108550.0,0.63605537]
[1756552666813,0.06004617,108560.0,108550.0,0.63605537]
[1756552667413,0.06004617,108560.0,108550.0,1.22445221]
[1756552667414,0.05747617,108560.0,108550.0,1.22445221]
[1756552669019,0.05747617,108560.0,108550.0,1.24445221]
[1756552671620,0.01825454,108560.0,108550.0,1.24445221]
[1756552671822,0.01825454,108560.0,108550.0,1.58445221]
[1756552673323,0.01825454,108560.0,108550.0,1.24445221]
[1756552673923,0.0513539,108560.0,108550.0,1.24445221]
[1756552674125,0.0513539,108560.0,108550.0,2.08093221]
[1756552675925,0.0513539,108560.0,108550.0,2.08089221]
[1756552676127,0.01825454,108560.0,108550.0,2.08089221]
[1756552677032,0.05106188,108560.0,108550.0,2.08089221]
[1756552677222,0.07072094,108560.0,108550.0,2.08089221]
[1756552679229,0.07072094,108560.0,108550.0,1.83089221]
[1756552680230,0.0379136,108560.0,108550.0,1.83089221]
[1756552680528,0.0379136,108560.0,108550.0,2.09969221]
[1756552680932,0.0379136,108560.0,108550.0,2.38969221]
[1756552681231,0.0706745,108560.0,108550.0,2.38969221]
[1756552682030,0.0379136,108560.0,108550.0,2.38969221]
[1756552684631,0.0379136,108560.0,108550.0,1.58912933]
[1756552684832,0.0379136,108560.0,108550.0,2.41969221]
[1756552687131,0.01825454,108560.0,108550.0,2.41969221]
[1756552690337,0.03787793,108560.0,108550.0,2.41969221]
[1756552691037,0.03787793,108560.0,108550.0,2.78049221]
[1756552693237,0.03787793,108560.0,108550.0,1.62405221]
[1756552693440,0.03787793,108560.0,108550.0,2.80021241]
[1756552693841,0.03787793,108560.0,108550.0,2.46021241]
[1756552694744,0.03787793,108560.0,108550.0,2.76021241]
[1756552697044,0.03787793,108560.0,108550.0,1.65405241]
[1756552697235,0.03787793,108560.0,108550.0,2.76017241]
[1756552699339,0.03787793,108560.0,108550.0,2.80990391]
[1756552703941,0.09233944,108570.0,108550.0,2.80990391]
[1756552704147,0.04071,108570.0,108560.0,0.73737001]
[1756552705249,0.04071,108570.0,108560.0,0.70420144]
[1756552705438,0.04171,108570.0,108560.0,0.95408288]
[1756552706138,0.13422589,108570.0,108560.0,0.95408288]
[1756552707454,0.13322589,108570.0,108560.0,0.95408288]
[1756552713862,0.13322589,108570.0,108560.0,1.31488288]
[1756552714365,0.13322589,108570.0,108560.0,2.15084288]
[1756552716164,0.15316577,108570.0,108560.0,2.15084288]
[1756552716661,0.15316577,108570.0,108560.0,2.15080288]
[1756552718862,0.15316577,108570.0,108560.0,1.31488288]
[1756552719065,0.15316577,108570.0,108560.0,2.15080288]
[1756552721368,0.15316577,108570.0,108560.0,1.31488288]
[1756552721569,0.15316577,108570.0,108560.0,2.15076288]
[1756552724070,0.15316577,108570.0,108560.0,1.31488288]
[1756552724269,0.15316577,108570.0,108560.0,2.15076288]
[1756552726571,0.39844721,108570.0,108560.0,2.15076288]
[1756552734477,0.15316577,108570.0,108560.0,2.15076288]
[1756552736681,0.09381577,108570.0,108560.0,2.15076288]
[1756552740983,0.05310577,108570.0,108560.0,2.15076288]
[1756552754698,0.05310577,108570.0,108560.0,1.42916288]
[1756552754996,0.05310577,108570.0,108560.0,2.15076288]
[1756552762903,0.11221577,108570.0,108560.0,2.15076288]
[1756552764709,0.05310577,108570.0,108560.0,2.15076288]
[1756552767825,0.05310577,108570.0,108560.0,1.31488288]
[1756552768022,0.15360577,108570.0,108560.0,1.31488288]
[1756552768222,0.15360577,108570.0,108560.0,2.15048288]
[1756552774327,0.15360577,108570.0,108560.0,1.65992]
[1756552774528,0.15360577,108570.0,108560.0,2.15048288]
[1756552778831,0.09449577,108570.0,108560.0,2.15048288]
[1756552786635,0.09449577,108570.0,108560.0,1.42888288]
[1756552786836,0.09449577,108570.0,108560.0,2.1688277]
[1756552787638,0.05310577,108570.0,108560.0,2.1688277]
[1756552787941,0.05310577,108570.0,108560.0,2.5488277]
[1756552793946,0.05310577,108570.0,108560.0,2.1688277]
[1756552798947,0.05310577,108570.0,108560.0,2.4376277]
[1756552800245,0.05310577,108570.0,108560.0,2.9976277]
[1756552801748,0.05310577,108570.0,108560.0,3.0003877]
[1756552801951,0.05310577,108570.0,108560.0,2.6903877]
[1756552802347,0.05310577,108570.0,108560.0,1.8550277]
[1756552802650,0.05310577,108570.0,108560.0,2.6903877]
[1756552804146,0.23707818,108590.0,108560.0,2.44510626]
[1756552804340,0.2965191,108590.0,108580.0,0.70173144]
[1756552805448,0.2965191,108590.0,108580.0,1.53705144]
[1756552805949,0.2965191,108590.0,108580.0,1.54165144]
[1756552806149,0.3565591,108590.0,108580.0,1.54165144]
[1756552807151,0.3575591,108590.0,108580.0,1.54165144]
[1756552807348,0.42367416,108590.0,108580.0,1.29633]
[1756552807650,0.42367416,108590.0,108580.0,1.54161144]
[1756552808245,0.46991733,108590.0,108580.0,1.54161144]
[1756552810051,0.46991733,108590.0,108580.0,0.46105]
[1756552810274,0.96519877,108590.0,108580.0,0.83988]
[1756552810849,0.96519877,108590.0,108580.0,0.0046]
[1756552811050,0.96519877,108590.0,108580.0,0.83988]
[1756552811449,0.96519877,108590.0,108580.0,0.87882]
[1756552815853,0.96519877,108590.0,108580.0,0.93553]
[1756552817354,0.89908371,108590.0,108580.0,0.93553]
[1756552817757,0.66200553,108590.0,108580.0,0.93553]
[1756552819354,0.66200553,108590.0,108580.0,1.29633]
[1756552820759,0.66200553,108590.0,108580.0,1.54161144]
[1756552825261,0.66200553,108590.0,108580.0,1.31511719]
[1756552825463,0.66200553,108590.0,108580.0,1.56039863]
[1756552826561,0.71166872,108590.0,108580.0,1.56039863]
[1756552827462,0.66200553,108590.0,108580.0,1.56039863]
[1756552827653,0.68176797,108590.0,108580.0,1.56039863]
[1756552830162,0.43176797,108590.0,108580.0,1.56039863]
[1756552830365,0.12644653,108590.0,108580.0,1.80568007]
[1756552830565,0.37172797,108590.0,108580.0,1.80568007]
[1756552830767,0.37172797,108590.0,108580.0,1.56039863]
[1756552832959,0.43784303,108590.0,108580.0,1.56039863]
[1756552833561,0.37172797,108590.0,108580.0,1.56039863]
[1756552834157,0.06700561,108590.0,108580.0,2.05568007]
[1756552836073,0.06700561,108590.0,108580.0,2.41648007]
[1756552837668,0.07195165,108600.0,108590.0,0.04383]
[1756552837866,0.07195165,108600.0,108590.0,0.69080144]
[1756552838063,0.02228355,108600.0,108590.0,0.69080144]
[1756552838264,0.20337207,108610.0,108590.0,0.69080144]
[1756552838470,0.2633793,108610.0,108600.0,1.50098144]
[1756552838771,0.31014869,108610.0,108600.0,1.54187144]
[1756552839269,0.31014869,108610.0,108600.0,1.54646144]
[1756552839568,0.40372616,108610.0,108600.0,1.54646144]
[1756552839968,0.40372616,108610.0,108600.0,1.30118]
[1756552840169,0.40372616,108610.0,108600.0,1.54646144]
[1756552840364,0.46262616,108610.0,108600.0,1.54646144]
[1756552840871,0.46362616,108610.0,108600.0,1.54646144]
[1756552842371,0.16867662,108610.0,108600.0,1.54646144]
[1756552842573,0.41395806,108610.0,108600.0,1.54646144]
[1756552843978,0.41395806,108610.0,108600.0,1.18566144]
[1756552844172,0.41395806,108610.0,108600.0,1.54646144]
[1756552844973,0.41395806,108610.0,108600.0,1.79174288]
[1756552844974,0.14848939,108610.0,108600.0,1.79174288]
[1756552845179,0.08958939,108610.0,108600.0,1.79174288]
[1756552849675,0.10927923,108610.0,108600.0,1.79174288]
[1756552850778,0.10927923,108610.0,108600.0,2.15254288]
[1756552851178,0.10927923,108610.0,108600.0,1.31754288]
[1756552851375,0.10927923,108610.0,108600.0,2.15238288]
[1756552853279,0.06945923,108610.0,108600.0,2.15238288]
[1756552855278,0.06945923,108610.0,108600.0,1.31754288]
[1756552855482,0.06945923,108610.0,108600.0,2.15234288]
[1756552855983,0.06945923,108610.0,108600.0,1.31754288]
[1756552856291,0.06945923,108610.0,108600.0,2.15230288]
[1756552857387,0.11912733,108610.0,108600.0,2.15230288]
[1756552858886,0.11912733,108610.0,108600.0,1.31754288]
[1756552859185,0.17802733,108610.0,108600.0,2.15230288]
[1756552859584,0.11912733,108610.0,108600.0,2.15230288]
[1756552859893,0.11712733,108610.0,108600.0,2.15230288]
[1756552860087,0.11912733,108610.0,108600.0,2.15230288]
[1756552861690,0.11912733,108610.0,108600.0,1.31754288]
[1756552861891,0.11912733,108610.0,108600.0,2.15226288]
[1756552863897,0.1191647,108610.0,108600.0,2.15226288]
[1756552864093,0.0694966,108610.0,108600.0,2.15226288]
[1756552866391,0.3702965,108620.0,108600.0,2.15226288]
[1756552866597,0.03824,108610.0,108600.0,1.54618144]